fUST/lending_fUST_20240127
["ID","MTS","AMOUNT","RATE_DAILY","PERIOD"]
[312847009,1706349291337,-253.19198189,0.00041,120]
[312847010,1706349291362,-8429.56135622,0.00041,90]
[312847011,1706349291386,-311.4443974,0.00041,120]
[312847012,1706349291411,-1000.0,0.00041,41]
[312847013,1706349291435,-191.11429678,0.00041,120]
[312847014,1706349291459,-5000.0,0.00041,120]
[312847015,1706349291482,-5000.0,0.00041,120]
[312847016,1706349291505,-5000.0,0.00041,120]
[312847017,1706349291528,-5000.0,0.00041,120]
[312847018,1706349291553,-331.99071868,0.00041,30]
[312847019,1706349291576,-5654.25447363,0.00041,60]
[312847020,1706349291600,-154.0,0.00041,90]
[312847021,1706349291624,-605.21586371,0.00041014,30]
[312847022,1706349291648,-243.882614,0.0004119,30]
[312847023,1706349291770,-342.392973,0.0004119,30]
[312847024,1706349291796,-382.264268,0.0004119,30]
[312847025,1706349291820,-277.218435,0.0004119,30]
[312847026,1706349291842,-165.6339,0.0004119,30]
[312847027,1706349291868,-252.140176,0.0004119,30]
[312847028,1706349291892,-179.611754,0.0004119,30]
[312847029,1706349291914,-166.4299658,0.000414,45]
[312847030,1706349291937,-1743.187677,0.00041553,120]
[312847031,1706349291960,-757.709608,0.00041705,30]
[312847032,1706349291982,-474.5644,0.00041705,30]
[312847033,1706349292004,-243.882614,0.00041705,30]
[312847034,1706349292028,-342.392973,0.00041705,30]
[312847035,1706349292050,-243.882614,0.00041705,30]
[312847036,1706349292072,-342.392973,0.00041705,30]
[312847037,1706349292094,-382.264268,0.00041705,30]
[312847038,1706349292116,-277.218435,0.00041705,30]
[312847039,1706349292138,-252.140176,0.00041705,30]
[312847040,1706349292160,-164.486528,0.0004171,30]
[312847041,1706349292182,-190.789426,0.0004171,30]
[312847042,1706349292204,-163.189884,0.0004171,30]
[312847043,1706349292226,-230.714541,0.0004171,30]
[312847044,1706349292248,-158.120799,0.0004171,30]
[312847045,1706349292271,-175.543767,0.0004171,30]
[312847046,1706349292294,-214.023404,0.0004171,30]
[312847047,1706349292316,-155.47275,0.0004171,30]
[312847048,1706349292339,-182.42364,0.0004171,30]
[312847049,1706349292363,-8000.0,0.000418,36]
[312847050,1706349292385,-179.611754,0.00041877,30]
[312847051,1706349292408,-202.66698004,0.00041878,30]
[312847052,1706349292431,-1854.04252819,0.00042,30]
[312847053,1706349292454,-1000.0,0.00042,42]
[312847054,1706349292476,-10000.0,0.00042,120]
[312847055,1706349292497,-10000.0,0.00042,120]
[312847056,1706349292520,-5000.0,0.00042,120]
[312847057,1706349292542,-5000.0,0.00042,120]
[312847058,1706349292564,-1000.0,0.00042,30]
[312847059,1706349292587,-1000.0,0.00042,30]
[312847060,1706349292608,-34981.87631614,0.00042,60]
[312847061,1706349292637,-42665.75922623,0.00042,120]
[312847062,1706349292660,-757.709608,0.0004222,30]
[312847063,1706349292688,-474.5644,0.0004222,30]
[312847064,1706349292710,-243.882614,0.0004222,30]
[312847065,1706349292733,-342.392973,0.0004222,30]
[312847066,1706349292756,-243.882614,0.0004222,30]
[312847067,1706349292778,-342.392973,0.0004222,30]
[312847068,1706349292801,-382.264268,0.0004222,30]
[312847069,1706349292823,-277.218435,0.0004222,30]
[312847070,1706349292846,-252.140176,0.0004222,30]
[312847071,1706349292869,-179.611754,0.00042563,30]
[312847072,1706349292892,-757.709608,0.00042735,30]
[312847073,1706349292914,-474.5644,0.00042735,30]
[312847074,1706349292937,-243.882614,0.00042735,30]
[312847075,1706349292959,-342.392973,0.00042735,30]
[312847076,1706349292982,-243.882614,0.00042735,30]
[312847077,1706349293004,-342.392973,0.00042735,30]
[312847078,1706349293028,-382.264268,0.00042735,30]
[312847079,1706349293050,-277.218435,0.00042735,30]
[312847080,1706349293072,-252.140176,0.00042735,30]
[312847081,1706349293095,-164.486528,0.00042753,30]
[312847082,1706349293117,-7388.80625031,0.00043,120]
[312847083,1706349293139,-1000.0,0.00043,43]
[312847084,1706349293161,-180.0,0.00043,120]
[312847085,1706349293183,-10000.0,0.00043,120]
[312847086,1706349293206,-5000.0,0.00043,120]
[312847087,1706349293229,-1000.0,0.00043,30]
[312847088,1706349293251,-1707.2291,0.0004311,30]
[312847089,1706349293274,-2500.0,0.0004318,90]
[312847090,1706349293297,-151.23280937,0.00043206,30]
[312847091,1706349293320,-757.709608,0.0004325,30]
[312847092,1706349293343,-474.5644,0.0004325,30]
[312847093,1706349293368,-243.882614,0.0004325,30]
[312847094,1706349293392,-342.392973,0.0004325,30]
[312847095,1706349293415,-243.882614,0.0004325,30]
[312847096,1706349293577,-342.392973,0.0004325,30]
[312847097,1706349293602,-382.264268,0.0004325,30]
[312847098,1706349293625,-277.218435,0.0004325,30]
[312847099,1706349293649,-252.140176,0.0004325,30]
[312847100,1706349293671,-179.611754,0.0004325,30]
[312847101,1706349293693,-154.0,0.00043251,90]
[312847102,1706349293715,-167.27955237,0.00043276,30]
[312847103,1706349293737,-3083.35954775,0.0004328,110]
[312847104,1706349293760,-155.00634275,0.0004339,30]
[312847105,1706349293784,-8963.53783872,0.00043456,120]
[312847106,1706349300396,-41036.46216128,0.00043456,120]
[312847107,1706349300421,-155.16104569,0.00043569,30]
[312847108,1706349300446,-546.65600621,0.0004362,30]
[312847109,1706349300469,-151.96373486,0.00043739,30]
[312847110,1706349300497,-164.486528,0.00043796,30]
[312847111,1706349300620,-190.789426,0.00043796,30]
[312847112,1706349300645,-175.543767,0.00043796,30]
[312847113,1706349300667,-155.47275,0.00043796,30]
[312847114,1706349300690,-1640.517747,0.00043798,30]
[312847115,1706349300711,-155.16104569,0.00043803,30]
[312847116,1706349300736,-155.16104569,0.00043825,30]
[312847117,1706349300758,-4468.24,0.00043835,31]
[312847118,1706349308052,4248.78749452,0.0004,120]
[312847119,1706349355938,2221.63410327,0.00031,30]
[312847120,1706349365107,2120.67,0.00022,120]
[312847123,1706349415224,21949.75256416,0.000295,30]
[312847129,1706349522773,5000.0,0.00029244,5]
[312847130,1706349524937,200.0,0.00029508,15]
[312847135,1706349665084,2029.96239021,0.00022,120]
[312847136,1706349716416,155.01860223,0.00021998,4]
[312847137,1706349792684,5000.0,0.00029244,5]
[312847138,1706349803327,155.01860223,0.00021991,4]
[312847139,1706349824972,200.0,0.00024191,7]
[312847140,1706349896753,151.01812217,0.00030717,30]
[312847147,1706350015961,155.01860223,0.00021535,4]
[312847149,1706350033966,155.01860223,0.00022983,4]
[312847150,1706350053964,155.01860223,0.00022983,4]
[312847151,1706350071983,155.01860223,0.00022983,4]
[312847152,1706350089972,155.01860223,0.00022983,4]
[312847160,1706350111965,155.01860223,0.00022983,4]
[312847162,1706350127969,155.01860223,0.00022983,4]
[312847164,1706350143971,155.01860223,0.00022983,4]
[312847171,1706350163969,155.01860223,0.00022983,4]
[312847178,1706350187973,155.01860223,0.00022983,4]
[312847181,1706350207976,155.01860223,0.00022983,4]
[312847186,1706350227980,155.01860223,0.00022983,4]
[312847221,1706350233945,-500.0,0.00021522,2]
[312847223,1706350233954,-295.12770733,0.00021522,2]
[312847225,1706350233963,-3921.59583547,0.00021522,2]
[312847226,1706350233972,-521.0,0.00021523,2]
[312847228,1706350233982,-329.79784935,0.00021523,2]
[312847230,1706350233992,-10996.77372916,0.00021524,2]
[312847232,1706350234001,-7818.02905683,0.00021524,2]
[312847234,1706350234010,-184.0980345,0.00021541,2]
[312847236,1706350234019,-426.38170713,0.00022,2]
[312847238,1706350234028,-8744.7051695,0.00022799,2]
[312847240,1706350234038,-7464.3,0.00022973,3]
[312847242,1706350234047,-3085.2117945,0.00022973,3]
[312847245,1706350234059,-3135.0382055,0.00022973,3]
[312847247,1706350234068,-5183.54,0.00022973,3]
[312847249,1706350234077,-1827.7377922,0.00022983,2]
[312847251,1706350234087,-35598.34558984,0.00022983,2]
[312847253,1706350234096,-684.7498584,0.00024428,2]
[312847255,1706350234105,-2105.3133158,0.00025537,2]
[312847257,1706350234114,-14179.45441672,0.00025538,2]
[312847259,1706350234127,-4737.77607783,0.00025538,2]
[312847260,1706350234136,-10894.94694796,0.00025539,2]
[312847278,1706350237956,-523.34168566,0.00021521,2]
[312847279,1706350237965,-3758.91794826,0.00025539,2]
[312847280,1706350237989,-4201.9253491,0.00025539,2]
[312847281,1706350238024,-13839.84094315,0.00025539,2]
[312847282,1706350238036,-3923.1,0.00025539,2]
[312847283,1706350238047,-4084.77626696,0.00025539,2]
[312847284,1706350238058,-7090.0767508,0.00025539,2]
[312847488,1706350265110,247.60636295,0.00025,120]
[312847491,1706350273744,379.28469965,0.00029242,7]
[312847510,1706350488670,5000.0,0.00029339,5]
[312847520,1706350565090,202.19461454,0.00025,120]
[312847521,1706350788581,5000.0,0.00029351,5]
[312847525,1706350994141,151.01510151,0.00030489,120]
[312847526,1706351118810,5000.0,0.00029351,5]
[312847532,1706351370087,4534.16666,0.00031,5]
[312847720,1706351444340,-155.01705188,0.00023831,4]
[312847721,1706351444349,-323.13798889,0.00023832,2]
[312847738,1706351448312,5000.0,0.00029351,5]
[312847751,1706352342617,5000.0,0.00029351,5]
[312847796,1706352632388,-453.1775686,0.00023394,2]
[312847798,1706352632398,-117.64922043,0.00023394,2]
[312847856,1706352642949,5000.0,0.00029351,5]
[312847884,1706352659463,332.11584827,0.00017926,2]
[312847885,1706352691763,155.01705188,0.00022462,4]
[312847886,1706352711760,155.01705188,0.00021511,4]
[312847888,1706352729768,155.01705188,0.00021511,4]
[312847889,1706352749758,155.01705188,0.00021511,4]
[312847891,1706352763772,155.01705188,0.00021511,4]
[312847892,1706352789764,155.01705188,0.00021511,4]
[312847893,1706352807793,155.01705188,0.00021511,4]
[312847894,1706352825779,155.01705188,0.00021511,4]
[312847895,1706352831594,3568.51392111,0.0001631,2]
[312847896,1706352845787,155.01705188,0.00021511,4]
[312847897,1706352846348,7433.00817879,0.0001789,2]
[312847900,1706352867786,155.01705188,0.00021511,4]
[312847902,1706352889796,155.01705188,0.00021511,4]
[312847903,1706352907788,155.01705188,0.00021511,4]
[312847904,1706352931881,155.01705188,0.00021511,4]
[312847905,1706352933499,151.01510151,0.00030525,30]
[312847906,1706352949799,155.01705188,0.00021511,4]
[312847908,1706352963802,155.01705188,0.00021511,4]
[312847909,1706352972196,1146.71737812,0.00030525,5]
[312847910,1706352985809,155.01705188,0.00021511,4]
[312847911,1706353001803,155.01705188,0.00021511,4]
[312847912,1706353019808,155.01705188,0.00021511,4]
[312847915,1706353045816,155.01705188,0.00021511,4]
[312847916,1706353061816,155.01705188,0.00021511,4]
[312847917,1706353077815,155.01705188,0.00021511,4]
[312847918,1706353097837,155.01705188,0.00021511,4]
[312847919,1706353106114,260.66256875,0.00023901,7]
[312847921,1706353117818,155.01705188,0.00021511,4]
[312847922,1706353135826,155.01705188,0.00021511,4]
[312847923,1706353155828,155.01705188,0.00021511,4]
[312847925,1706353175839,155.01705188,0.00021511,4]
[312847926,1706353195831,155.01705188,0.00021511,4]
[312847927,1706353217838,155.01705188,0.00021511,4]
[312847928,1706353239830,155.01705188,0.00021511,4]
[312847929,1706353257844,155.01705188,0.00021511,4]
[312847930,1706353275849,155.01705188,0.00021511,4]
[312847931,1706353293842,155.01705188,0.00021511,4]
[312847932,1706353309855,155.01705188,0.00021511,4]
[312847933,1706353331848,155.01705188,0.00021511,4]
[312847934,1706353347857,155.01705188,0.00021511,4]
[312847935,1706353365848,155.01705188,0.00021511,4]
[312847936,1706353385861,155.01705188,0.00021511,4]
[312847937,1706353405860,155.01705188,0.00021511,4]
[312847938,1706353421856,155.01705188,0.00021511,4]
[312847939,1706353426397,200.0,0.00022616,7]
[312847940,1706353427343,3122.86887342,0.000295,30]
[312847941,1706353439855,155.01705188,0.00021511,4]
[312847942,1706353457865,155.01705188,0.00021511,4]
[312847945,1706353481860,155.01705188,0.000185,3]
[312847946,1706353503885,155.01705188,0.000185,3]
[312847947,1706353514119,165.662086,0.00019273,2]
[312847948,1706353521866,155.01705188,0.00018488,3]
[312847949,1706353523737,23732.23039323,0.000185,2]
[312847950,1706353539754,19776.85866102,0.000185,2]
[312847951,1706353547874,155.01705188,0.00018476,3]
[312847952,1706353559764,10303.74336239,0.000185,2]
[312847953,1706353565879,155.01705188,0.00018476,3]
[312847954,1706353583871,155.01705188,0.00018475,3]
[312847955,1706353585773,10303.74336239,0.000185,2]
[312847956,1706353603864,155.01705188,0.00018464,3]
[312847957,1706353605744,10303.74336239,0.000185,2]
[312847958,1706353615072,246.112991,0.00019521,2]
[312847959,1706353623753,10303.74336239,0.000185,2]
[312847961,1706353626995,250.3795459,0.000185,2]
[312847962,1706353641746,2195.02556196,0.000185,2]
[312847963,1706353641777,4001.00449506,0.000185,2]
[312847964,1706353641805,4107.71330537,0.000185,2]
[312847965,1706353657762,5892.28669463,0.000185,2]
[312847972,1706353693880,155.01705188,0.00016646,3]
[312847973,1706353712096,2299.98348293,0.00018311,2]
[312847974,1706353713729,689.41556789,0.00016646,2]
[312847975,1706353713890,155.01705188,0.00016646,3]
[312847976,1706353719129,5558.31508145,0.00018311,2]
[312847977,1706353727463,280.0,0.00022375,7]
[312847978,1706353728270,233.0,0.00024613,7]
[312847979,1706353729879,155.01705188,0.00016644,3]
[312847980,1706353730289,987.23471209,0.00016646,2]
[312847981,1706353730316,9316.5086503,0.00016646,2]
[312847982,1706353747883,155.01705188,0.00016641,3]
[312847983,1706353748272,528.47429782,0.00016646,2]
[312847984,1706353748300,3303.66067955,0.00016646,2]
[312847985,1706353748327,6471.60838502,0.00016646,2]
[312847986,1706353765882,155.01705188,0.00016641,3]
[312847987,1706353770275,3373.3745631,0.00016646,2]
[312847988,1706353770299,6930.36879929,0.00016646,2]
[312847989,1706353785878,155.01705188,0.00016637,3]
[312847990,1706353788270,10303.74336239,0.00016646,2]
[312847992,1706353803884,155.01705188,0.00016549,3]
[312847993,1706353805085,13657.1923441,0.00016646,2]
[312847994,1706353805802,621.19360499,0.00016646,2]
[312847995,1706353806350,10303.74336239,0.00016646,2]
[312847996,1706353817416,535.60419036,0.00016646,2]
[312847997,1706353819780,621.19360499,0.00016646,2]
[312847998,1706353823889,155.01705188,0.00016547,3]
[312847999,1706353824267,9731.4316476,0.00016646,2]
[312848051,1706353832654,-156.15462323,0.00018385,2]
[312848052,1706353832664,-155.01705188,0.00018385,2]
[312848053,1706353832673,-155.01705188,0.00018385,2]
[312848054,1706353832683,-1480.94212731,0.00018385,2]
[312848055,1706353832695,-2440.65370816,0.00018385,2]
[312848056,1706353832705,-155.01705188,0.00018385,2]
[312848057,1706353832714,-3488.32998567,0.00018385,2]
[312848058,1706353832724,-155.01705188,0.00018385,2]
[312848059,1706353832734,-155.01705188,0.00018385,2]
[312848060,1706353832744,-161.15953298,0.00018386,2]
[312848061,1706353832755,-329.79784935,0.00018386,2]
[312848062,1706353832765,-19881.04253243,0.00018386,2]
[312848063,1706353832774,-500.0,0.00018386,2]
[312848064,1706353832784,-619.87708183,0.00018386,2]
[312848065,1706353832793,-295.12770733,0.00018386,2]
[312848066,1706353832802,-161.92569869,0.00018386,2]
[312848067,1706353832812,-1243.37082882,0.00018386,2]
[312848068,1706353832822,-303.42031779,0.00018386,2]
[312848069,1706353832832,-218.89563054,0.00018386,2]
[312848070,1706353832842,-156.60025691,0.00018386,2]
[312848071,1706353832851,-157.92483903,0.00018386,2]
[312848072,1706353832862,-265.67702683,0.00018387,2]
[312848073,1706353832872,-7966.81883748,0.00018387,2]
[312848074,1706353832881,-521.0,0.00018387,2]
[312848075,1706353832891,-171.07208762,0.00018387,2]
[312848076,1706353832906,-688.5172537,0.00018388,2]
[312848077,1706353832916,-10996.77372916,0.00018388,2]
[312848078,1706353832925,-155.01705188,0.00018388,2]
[312848079,1706353832935,-179.24642154,0.00018388,2]
[312848080,1706353832945,-1697.2441966,0.00018389,2]
[312848081,1706353832956,-213.595546,0.00018389,2]
[312848082,1706353832966,-523.34168566,0.0001839,2]
[312848083,1706353832977,-155.06158408,0.0001839,2]
[312848084,1706353832987,-155.01705188,0.0001839,2]
[312848085,1706353832998,-155.01705188,0.0001839,2]
[312848086,1706353833009,-742.1289388,0.0001839,2]
[312848087,1706353833018,-17152.98712079,0.0001839,2]
[312848088,1706353833031,-1952.4530555,0.0001839,2]
[312848089,1706353833043,-4146.03867837,0.0001839,2]
[312848090,1706353833778,211.98373288,0.00016646,2]
[312848091,1706353833879,535.60419036,0.00016646,2]
[312848092,1706353834118,1361.35996089,0.00018387,5]
[312848131,1706353838609,-1254.50882971,0.00018384,2]
[312848133,1706353838618,-453.1775686,0.00018384,2]
[312848136,1706353838628,-4817.36489966,0.00018387,2]
[312848138,1706353838637,-155.25133396,0.00018387,2]
[312848140,1706353838646,-158.74528164,0.00018389,2]
[312848142,1706353838655,-155.40830193,0.00018389,2]
[312848143,1706353838665,-13742.02245498,0.0001839,2]
[312848146,1706353838674,-625.17876758,0.00018391,2]
[312848147,1706353838683,-562.04995501,0.00018391,2]
[312848148,1706353838692,-220.33490612,0.00018395,2]
[312848149,1706353838701,-309.98377155,0.00018486,2]
[312848150,1706353838710,-70516.85711458,0.00018487,2]
[312848151,1706353838722,-10739.47436202,0.00018487,2]
[312848152,1706353838732,-1958.269228,0.00018488,2]
[312848153,1706353838741,-1958.269228,0.00018488,2]
[312848154,1706353838750,-1958.269228,0.0001849,2]
[312848155,1706353838760,-1958.269228,0.0001849,2]
[312848156,1706353838769,-6902.72272413,0.00018492,2]
[312848157,1706353838777,-11921.47765311,0.00018492,2]
[312848158,1706353838787,-1958.269228,0.00018492,2]
[312848159,1706353838796,-1958.269228,0.00018492,2]
[312848160,1706353838805,-151.0,0.00018495,2]
[312848161,1706353838814,-151.0,0.00018495,2]
[312848162,1706353838823,-151.0,0.00018495,2]
[312848163,1706353838832,-155.11047866,0.00018496,2]
[312848164,1706353838842,-1270.89180505,0.00018496,2]
[312848165,1706353838851,-524.00131321,0.00018496,2]
[312848166,1706353838860,-167.32933478,0.00018496,2]
[312848168,1706353838869,-595.27318689,0.00018496,2]
[312848170,1706353838878,-197.01943793,0.00018496,2]
[312848172,1706353838887,-155.41458436,0.00018496,2]
[312848174,1706353838896,-2001.80790077,0.00018496,2]
[312848176,1706353838910,-155.32067987,0.00018496,2]
[312848178,1706353838919,-159.13769746,0.00018496,2]
[312848180,1706353838928,-1770.34802153,0.00018496,2]
[312848182,1706353838937,-1742.02717057,0.00018496,2]
[312848183,1706353838946,-156.2843454,0.00018496,2]
[312848185,1706353838955,-632.96828925,0.00018496,2]
[312848187,1706353838965,-2081.23072938,0.00018496,2]
[312848189,1706353838973,-1296.57964106,0.00018496,2]
[312848191,1706353838985,-151.0,0.00018496,2]
[312848193,1706353838994,-151.0,0.00018496,2]
[312848195,1706353839003,-151.0,0.00018496,2]
[312848197,1706353839012,-151.0,0.00018496,2]
[312848199,1706353839023,-155.258726,0.00018496,2]
[312848201,1706353839034,-1958.269228,0.00018496,2]
[312848203,1706353839042,-1958.269228,0.00018496,2]
[312848214,1706353839134,-273.47586629,0.00018497,2]
[312848217,1706353839147,-151.0,0.00018497,2]
[312848218,1706353839158,-151.0,0.00018497,2]
[312848221,1706353839167,-2105.3133158,0.00018498,2]
[312848222,1706353839177,-471.05101678,0.00018498,2]
[312848225,1706353839188,-1958.269228,0.00018498,2]
[312848226,1706353839199,-1958.269228,0.00018498,2]
[312848228,1706353839210,-260.92970133,0.000185,2]
[312848230,1706353839219,-151.0,0.000185,2]
[312848233,1706353839230,-245.0,0.000185,2]
[312848234,1706353839239,-1583.7528565,0.00019,2]
[312848237,1706353839249,-151.0,0.0001944,2]
[312848238,1706353839259,-300.0,0.0002,2]
[312848241,1706353839269,-155.01705188,0.0002,2]
[312848243,1706353839279,-225.6972297,0.0002,2]
[312848245,1706353839288,-679.3029243,0.0002,2]
[312848247,1706353839297,-200.0,0.0002,2]
[312848249,1706353839306,-1199.09633829,0.0002,2]
[312848251,1706353839316,-387.16006083,0.0002,2]
[312848253,1706353839325,-1327.42997044,0.0002,2]
[312848255,1706353839334,-200.0,0.00020341,2]
[312848257,1706353839345,-151.0,0.00020384,2]
[312848258,1706353839354,-151.0,0.00020527,2]
[312848260,1706353839364,-164.976637,0.00020527,2]
[312848262,1706353839373,-164.976637,0.00020527,2]
[312848265,1706353839383,-151.0,0.00020527,2]
[312848266,1706353839392,-1958.269228,0.00020527,2]
[312848268,1706353839401,-1958.269228,0.00020527,2]
[312848270,1706353839411,-151.0,0.00020528,2]
[312848273,1706353839420,-164.976637,0.00020528,2]
[312848274,1706353839429,-164.976637,0.00020528,2]
[312848276,1706353839438,-756.10589,0.00020528,2]
[312848278,1706353839448,-756.10589,0.00020528,2]
[312848280,1706353839457,-1958.269228,0.00020528,2]
[312848282,1706353839466,-1958.269228,0.00020528,2]
[312848284,1706353839475,-151.0,0.00020544,2]
[312848286,1706353839484,-164.976637,0.00020544,2]
[312848288,1706353839493,-164.976637,0.00020544,2]
[312848289,1706353839502,-756.10589,0.00020544,2]
[312848291,1706353839511,-756.10589,0.00020544,2]
[312848293,1706353839521,-151.0,0.00020544,2]
[312848295,1706353839530,-8539.32669638,0.00020545,2]
[312848297,1706353839539,-151.0,0.00020545,2]
[312848299,1706353839549,-164.976637,0.00020545,2]
[312848301,1706353839558,-164.976637,0.00020545,2]
[312848303,1706353839567,-756.10589,0.00020545,2]
[312848305,1706353839576,-756.10589,0.00020545,2]
[312848307,1706353839586,-151.0,0.00020545,2]
[312848309,1706353839595,-1958.269228,0.00020545,2]
[312848311,1706353839604,-1958.269228,0.00020545,2]
[312848313,1706353839613,-155.11769562,0.00020556,2]
[312848314,1706353839622,-155.17595828,0.00020556,2]
[312848315,1706353839631,-208.59620441,0.00020556,2]
[312848316,1706353839641,-2841.43797795,0.00020556,2]
[312848317,1706353839650,-200.27809185,0.00020556,2]
[312848318,1706353839659,-325.08382029,0.00020556,2]
[312848319,1706353839668,-175.89663083,0.00020556,2]
[312848320,1706353839678,-756.10589,0.00020556,2]
[312848321,1706353839688,-756.10589,0.00020556,2]
[312848322,1706353839696,-151.0,0.00020556,2]
[312848323,1706353839706,-1958.269228,0.00020556,2]
[312848325,1706353839715,-1958.269228,0.00020556,2]
[312848326,1706353839723,-24900.0,0.00020562,2]
[312848327,1706353839732,-164.976637,0.00020562,2]
[312848328,1706353839741,-164.976637,0.00020562,2]
[312848329,1706353839750,-756.10589,0.00020562,2]
[312848330,1706353839759,-756.10589,0.00020562,2]
[312848331,1706353839768,-151.0,0.00020562,2]
[312848332,1706353839777,-1958.269228,0.00020562,2]
[312848333,1706353839786,-1958.269227,0.00020562,2]
[312848334,1706353839795,-220.3349061,0.00021109,2]
[312848335,1706353839804,-151.0,0.00021329,2]
[312848336,1706353839813,-151.0,0.00021501,2]
[312848337,1706353839822,-151.0,0.00021511,2]
[312848338,1706353839830,-151.0,0.00021798,2]
[312848339,1706353839839,-167.898325,0.00021918,2]
[312848340,1706353839848,-262.4952801,0.00022,2]
[312848341,1706353839857,-294.91698221,0.00022,2]
[312848342,1706353839866,-426.38170713,0.00022,2]
[312848343,1706353839875,-3971.98419525,0.00022,2]
[312848344,1706353839884,-164.09330822,0.00022,2]
[312848345,1706353839893,-756.10589,0.00022,2]
[312848346,1706353839906,-756.10589,0.00022,2]
[312848347,1706353839915,-151.0,0.00022273,2]
[312848348,1706353839924,-183.208202,0.00022463,2]
[312848349,1706353839933,-303.74433034,0.000227,2]
[312848350,1706353839943,-1416.67721386,0.00023,2]
[312848351,1706353839952,-9947.92180076,0.00023,2]
[312848352,1706353839961,-164.976637,0.00023,2]
[312848353,1706353839970,-164.976637,0.00023,2]
[312848354,1706353839980,-164.976637,0.00023,2]
[312848355,1706353839989,-164.976637,0.00023,2]
[312848356,1706353839998,-756.10589,0.00023,2]
[312848357,1706353840007,-756.10589,0.00023,2]
[312848358,1706353840016,-756.10589,0.00023,2]
[312848359,1706353840026,-756.10589,0.00023,2]
[312848360,1706353840036,-151.0,0.00023218,2]
[312848361,1706353840047,-220.3349061,0.00023823,2]
[312848362,1706353840056,-151.0,0.00023882,2]
[312848363,1706353840066,-151.0,0.00023892,2]
[312848364,1706353840075,-179.6142874,0.00023901,2]
[312848365,1706353840084,-2221.08094713,0.00023901,2]
[312848366,1706353840093,-640.86992768,0.00023901,2]
[312848367,1706353840103,-171.896884,0.00023901,2]
[312848368,1706353840113,-164.976637,0.00023901,2]
[312848369,1706353840122,-164.976637,0.00023901,2]
[312848370,1706353840134,-756.10589,0.00023901,2]
[312848371,1706353840145,-756.10589,0.00023901,2]
[312848372,1706353840157,-20945.31907602,0.00023902,2]
[312848373,1706353840166,-151.0,0.00023902,2]
[312848374,1706353840176,-151.0,0.00023902,2]
[312848375,1706353840185,-164.976637,0.00023902,2]
[312848376,1706353840194,-164.976637,0.00023902,2]
[312848377,1706353840203,-756.10589,0.00023902,2]
[312848378,1706353840214,-756.105888,0.00023902,2]
[312848379,1706353840224,-50000.0,0.00023903,2]
[312848380,1706353840235,-151.743959,0.00023903,2]
[312848381,1706353840245,-151.0,0.00023903,2]
[312848382,1706353840255,-151.0,0.00023903,2]
[312848383,1706353840268,-164.976637,0.00023903,2]
[312848384,1706353840278,-164.976634,0.00023903,2]
[312848385,1706353840287,-4017.99473319,0.00024,2]
[312848386,1706353840297,-151.0,0.00024162,2]
[312848387,1706353840306,-4727.98807036,0.00025,2]
[312848388,1706353840315,-851.06760342,0.00025,2]
[312848389,1706353840324,-7389.4786433,0.00025,2]
[312848390,1706353840333,-156.19598509,0.00025,2]
[312848391,1706353840342,-151.0,0.00025107,2]
[312848392,1706353840351,-2206.41579377,0.00025539,2]
[312848393,1706353840360,-241.485214,0.00026,2]
[312848394,1706353840369,-154.5089909,0.00026027,2]
[312848395,1706353840378,-151.0,0.00026051,2]
[312848396,1706353840387,-220.3349061,0.00026537,2]
[312848397,1706353840396,-151.0,0.00026996,2]
[312848398,1706353840405,-290.6944281,0.00027,2]
[312848399,1706353840415,-6802.1,0.00027397,3]
[312848400,1706353840424,-5668.41,0.00027397,3]
[312848401,1706353840433,-1901.44944296,0.000275,2]
[312848402,1706353840442,-3193.56181162,0.000275,2]